bitfinex-derivatives/quotes_SOLF0:USTF0_20250505
["timestamp","ask_amount","ask_price","bid_price","bid_amount"]
[1746409133728,6.9642,143.57,143.48,2.0471]
[1746409134233,6.9642,143.57,143.52,6.9662]
[1746409134528,6.9642,143.57,143.48,2.0471]
[1746409134729,6.9647,143.56,143.48,2.0471]
[1746409135329,44.03192679,143.61,143.48,2.0471]
[1746409135728,6.9644,143.57,143.53,6.9657]
[1746409136432,4.38648138,143.6,143.48,2.0471]
[1746409136731,35.46,143.61,143.52,35.48]
[1746409136932,6.9644,143.57,143.53,6.9661]
[1746409137427,35.46,143.61,143.52,35.48]
[1746409138431,4.39327252,143.6,143.52,35.48]
[1746409138630,35.46,143.61,143.52,35.48]
[1746409139132,6.9633,143.59,143.55,6.9647]
[1746409139429,35.46,143.61,143.52,35.48]
[1746409139929,6.9632,143.59,143.52,35.48]
[1746409140629,6.9629,143.6,143.56,6.9646]
[1746409141326,6.9633,143.59,143.56,6.9646]
[1746409143026,6.9633,143.59,143.55,6.965]
[1746409143624,6.9642,143.57,143.52,35.48]
[1746409143930,44.03192679,143.61,143.52,35.48]
[1746409144127,6.9644,143.57,143.53,6.9657]
[1746409144330,6.9644,143.57,143.52,35.48]
[1746409144631,6.9644,143.57,143.53,6.9659]
[1746409145133,44.03192679,143.61,143.52,35.48]
[1746409145333,35.46,143.61,143.52,35.48]
[1746409145627,6.9642,143.57,143.53,6.9659]
[1746409145932,8.57192679,143.6,143.49,2.0287]
[1746409146433,6.9649,143.56,143.52,6.9665]
[1746409146625,8.57192679,143.6,143.49,2.0287]
[1746409147021,8.57192679,143.6,143.5,6.9671]
[1746409147432,6.9655,143.55,143.5,6.9671]
[1746409147733,6.9655,143.55,143.51,6.967]
[1746409148034,4.40259587,143.54,143.47,1.985]
[1746409148226,35.26,143.56,143.47,1.985]
[1746409148732,6.9653,143.55,143.47,1.985]
[1746409148932,6.9653,143.55,143.51,6.9669]
[1746409149433,42.225,143.56,143.48,2.1571]
[1746409149633,35.26,143.56,143.49,2.0923]
[1746409150136,6.9654,143.55,143.51,6.9668]
[1746409150538,6.9654,143.55,143.49,2.0923]
[1746409150835,35.26,143.56,143.52,6.9665]
[1746409151042,35.26,143.56,143.49,2.0923]
[1746409152238,6.9657,143.54,143.5,6.9673]
[1746409154438,6.9657,143.54,143.51,6.967]
[1746409154646,6.9657,143.54,143.49,2.0923]
[1746409155050,6.9657,143.54,143.5,6.9672]
[1746409156249,6.9657,143.54,143.49,2.0923]
[1746409156651,6.9657,143.54,143.5,6.9672]
[1746409157553,6.9657,143.54,143.51,6.967]
[1746409158362,6.9653,143.55,143.49,2.0923]
[1746409158651,40.61298426,143.56,143.49,2.0923]
[1746409158852,5.35298426,143.53,143.47,1.985]
[1746409159149,4.42508679,143.55,143.41,5.35298426]
[1746409159150,5.35298426,143.5,143.41,2.1534]
[1746409159353,6.9698,143.46,143.41,2.1534]
[1746409159745,40.63298426,143.48,143.41,2.1534]
[1746409161351,6.9701,143.45,143.41,9.125]
[1746409161751,6.9701,143.45,143.41,2.1534]
[1746409162155,6.9701,143.45,143.41,9.1251]
[1746409162450,35.28,143.48,143.38,4.2337]
[1746409162651,35.28,143.48,143.39,6.9725]
[1746409162841,6.9709,143.44,143.39,6.9725]
[1746409163452,6.9709,143.44,143.4,6.9722]
[1746409163954,8.57518906,143.47,143.38,4.2337]
[1746409164754,6.9708,143.44,143.38,4.2337]
[1746409164954,8.57518906,143.47,143.37,35.28]
[1746409165352,6.9708,143.44,143.4,6.9721]
[1746409165549,8.57518906,143.47,143.37,35.28]
[1746409165853,6.9701,143.45,143.4,6.9724]
[1746409166245,1.9995,143.53,143.38,8.57518906]
[1746409166453,1.9995,143.53,143.47,6.969]
[1746409166750,1.9995,143.53,143.43,35.28]
[1746409166952,6.9667,143.52,143.44,37.2618]
[1746409167153,1.9995,143.53,143.44,37.2618]
[1746409167452,6.9687,143.48,143.44,35.28]
[1746409167643,6.9687,143.48,143.4,35.28]
[1746409168554,6.969,143.47,143.43,6.9706]
[1746409168852,8.57518906,143.52,143.4,35.28]
[1746409169053,6.9681,143.49,143.4,35.28]
[1746409169352,6.9681,143.49,143.41,2.0712]
[1746409169553,6.9681,143.49,143.44,6.97]
[1746409170755,6.9681,143.49,143.45,6.9698]
[1746409170948,6.9685,143.48,143.45,6.9698]
[1746409171148,1.9995,143.53,143.45,6.9698]
[1746409171349,4.43923696,143.52,143.45,6.9698]
[1746409171550,1.9995,143.53,143.41,2.0712]
[1746409171848,4.4388411,143.52,143.41,2.0712]
[1746409172044,1.9995,143.53,143.41,2.0712]
[1746409172248,4.43904552,143.52,143.41,2.0712]
[1746409172452,4.43904552,143.51,143.41,2.0712]
[1746409172653,1.9995,143.53,143.41,2.0712]
[1746409172855,4.43772186,143.52,143.41,2.0712]
[1746409173055,6.9694,143.47,143.43,6.9708]
[1746409173252,1.9995,143.53,143.43,6.9708]
[1746409173452,4.44576836,143.52,143.41,2.0712]
[1746409173654,6.9698,143.46,143.41,2.0712]
[1746409173844,35.04,143.48,143.41,2.0712]
[1746409174557,6.9681,143.49,143.41,2.0712]
[1746409175756,6.9681,143.49,143.45,6.9697]
[1746409176256,6.9681,143.49,143.41,2.0712]
[1746409176455,6.9686,143.48,143.45,6.9696]
[1746409176758,6.9686,143.48,143.42,2.0814]
[1746409177559,35.04,143.52,143.42,2.0814]
[1746409177758,35.04,143.52,143.41,2.0712]
[1746409177945,8.57518906,143.49,143.4,35.28]
[1746409178150,6.9708,143.44,143.4,42.2521]
[1746409180157,35.06,143.47,143.4,35.28]
[1746409180354,2.127,143.46,143.36,35.06]
[1746409180857,10.70218906,143.46,143.38,6.9732]
[1746409181258,6.9714,143.43,143.38,6.9732]
[1746409181459,6.9714,143.43,143.39,6.9728]
[1746409185558,6.9715,143.42,143.39,6.9728]
[1746409185761,6.9715,143.42,143.38,6.9732]
[1746409187160,6.9721,143.41,143.37,6.9738]
[1746409187961,6.9726,143.4,143.36,6.9742]
[1746409188260,5.36194952,143.42,143.35,37.1861]
[1746409188658,6.9725,143.4,143.35,44.1606]
[1746409188956,5.36194952,143.42,143.35,37.1861]
[1746409189161,6.9734,143.38,143.34,6.9751]
[1746409189865,5.36194952,143.39,143.32,586.78]
[1746409190158,5.36194952,143.39,143.32,35.06]
[1746409190360,6.9739,143.37,143.32,42.036]
[1746409190563,5.36194952,143.39,143.32,35.06]
[1746409191053,6.9734,143.38,143.33,6.9754]
[1746409191251,2.1659,143.4,143.32,35.06]
[1746409194264,6.9739,143.37,143.33,6.9757]
[1746409194562,2.1659,143.4,143.32,35.06]
[1746409195063,6.9738,143.38,143.33,6.9755]
[1746409195363,6.9738,143.38,143.32,35.06]
[1746409196061,6.9738,143.38,143.34,6.975]
[1746409197163,6.9739,143.37,143.33,6.9757]
[1746409197360,2.1659,143.4,143.32,35.06]
[1746409197860,2.1659,143.4,143.33,6.9757]
[1746409198469,2.1659,143.4,143.32,42.0361]
[1746409198868,6.9743,143.37,143.32,42.0361]
[1746409199067,35.08,143.37,143.31,2.044]
[1746409200566,2.1659,143.4,143.31,2.044]
[1746409201167,2.1659,143.4,143.32,2.0831]
[1746409201367,6.9729,143.39,143.35,6.9744]
[1746409201858,2.1659,143.4,143.37,6.9738]
[1746409202062,34.8,143.41,143.33,36.8207]
[1746409202664,34.8,143.41,143.37,6.9736]
[1746409202859,34.8,143.41,143.33,36.8207]
[1746409203062,6.9739,143.37,143.34,6.9752]
[1746409203269,8.58380585,143.4,143.31,2.044]
[1746409203568,12.76050585,143.4,143.31,2.044]
[1746409203868,8.58380585,143.37,143.31,2.044]
[1746409204062,34.8,143.36,143.28,34.8]
[1746409204767,6.9755,143.34,143.28,34.8]
[1746409205163,6.9755,143.34,143.3,6.9772]
[1746409205368,34.8,143.36,143.28,34.8]
[1746409205968,34.8,143.42,143.28,34.8]
[1746409206169,4.43990979,143.41,143.28,395.8]
[1746409206368,34.8,143.42,143.34,6.9749]
[1746409206668,4.43912428,143.41,143.28,395.8]
[1746409206861,34.8,143.42,143.28,395.8]
[1746409207057,6.9726,143.4,143.29,8.58380585]
[1746409207258,34.8,143.42,143.37,6.9736]
[1746409207659,34.8,143.42,143.34,34.8]
[1746409207860,34.8,143.42,143.35,2.043]
[1746409208271,6.9727,143.4,143.36,6.9742]
[1746409209564,6.9721,143.41,143.37,6.9738]
[1746409210170,34.8,143.42,143.36,2.0985]
[1746409210370,34.8,143.42,143.36,4.175]
[1746409211070,552.2,143.45,143.36,4.175]
[1746409211266,6.9707,143.44,143.4,6.9721]
[1746409211471,34.8,143.46,143.39,34.8]
[1746409211673,23.92852265,143.49,143.39,34.8]
[1746409211873,6.9697,143.46,143.42,6.971]
[1746409212070,6.9697,143.46,143.43,2.0821]
[1746409212877,6.9692,143.47,143.43,9.0527]
[1746409213075,36.8241,143.5,143.43,2.0821]
[1746409213271,45.40790585,143.5,143.39,34.8]
[1746409213471,4.42707758,143.49,143.39,34.8]
[1746409213675,4.42707758,143.48,143.39,34.8]
[1746409213972,6.9708,143.44,143.39,41.7726]
[1746409214174,6.9708,143.44,143.39,34.8]
[1746409214375,6.9706,143.44,143.4,6.9721]
[1746409215577,6.9711,143.43,143.39,34.8]
[1746409215778,45.40790585,143.5,143.39,34.8]
[1746409215979,8.58380585,143.47,143.39,34.8]
[1746409216167,4.43601198,143.46,143.38,6.9729]
[1746409216367,6.9722,143.41,143.37,9.056]
[1746409216772,34.8,143.45,143.37,2.0821]
[1746409216974,6.9705,143.44,143.4,6.9723]
[1746409217279,34.8,143.45,143.37,2.0821]
[1746409217676,6.9712,143.43,143.39,6.9727]
[1746409217876,34.8,143.45,143.37,2.0821]
[1746409218075,4.45365627,143.44,143.37,2.0821]
[1746409218380,34.8,143.45,143.37,2.0821]
[1746409218581,4.45078746,143.44,143.37,2.0821]
[1746409218780,34.8,143.45,143.37,2.0821]
[1746409219081,4.45082216,143.44,143.37,2.0821]
[1746409219279,6.9725,143.4,143.36,11.1493]
[1746409219480,6.9725,143.4,143.36,13.1671]
[1746409222982,8.58380585,143.44,143.36,2.0178]
[1746409223182,4.45859168,143.43,143.31,34.8]
[1746409223382,4.45859168,143.42,143.32,2.1291]
[1746409223584,6.9738,143.38,143.33,6.9756]
[1746409223880,12.67950585,143.44,143.32,2.1291]
[1746409224082,6.9737,143.38,143.32,2.1291]
[1746409224485,6.9731,143.39,143.35,6.9748]
[1746409224783,12.67950585,143.44,143.32,2.1291]
[1746409224984,6.9724,143.4,143.35,6.9744]
[1746409225583,6.9724,143.4,143.36,6.9743]
[1746409227286,4.45728542,143.39,143.32,2.1291]
[1746409227482,4.45728542,143.38,143.32,2.1291]
[1746409227683,4.45728542,143.37,143.32,2.1291]
[1746409227879,34.8,143.4,143.32,2.1291]
[1746409228086,36.8934,143.44,143.32,2.1291]
[1746409228275,4.47124916,143.43,143.32,10.71290585]
[1746409228479,6.9715,143.42,143.32,10.71290585]
[1746409229085,6.9711,143.43,143.32,10.71290585]
[1746409229282,23.92852265,143.47,143.32,10.71290585]
[1746409229487,23.92852265,143.47,143.42,6.9713]
[1746409229785,6.9698,143.46,143.42,6.9713]
[1746409231087,23.92852265,143.47,143.4,2.0816]
[1746409231388,34.8,143.49,143.4,2.0816]
[1746409231789,6.9688,143.48,143.44,6.9704]
[1746409232289,6.969,143.47,143.44,6.9704]
[1746409232589,6.969,143.47,143.43,6.9708]
[1746409233791,6.9687,143.48,143.44,6.9704]
[1746409233986,34.8,143.49,143.4,2.0816]
[1746409234289,552.38,143.52,143.4,2.0816]
[1746409234882,6.9679,143.5,143.45,6.9696]
[1746409235085,6.9679,143.5,143.46,2.1663]
[1746409235792,6.9679,143.5,143.46,9.1358]
[1746409235986,6.9679,143.5,143.46,2.1663]
[1746409236488,34.5,143.53,143.46,2.1663]
[1746409236489,6.9681,143.49,143.46,2.1663]
[1746409238189,6.9681,143.49,143.46,9.1357]
[1746409238495,34.5,143.53,143.46,2.1663]
[1746409239489,2.0414,143.55,143.46,2.1663]
[1746409239688,43.08380585,143.57,143.46,2.1663]
[1746409239888,4.41323994,143.56,143.48,6.9682]
[1746409240088,43.08380585,143.57,143.48,6.9682]
[1746409240289,6.9669,143.52,143.48,6.9682]
[1746409240487,43.08380585,143.57,143.48,6.9682]
[1746409241391,43.08380585,143.57,143.47,6.9688]
[1746409241792,43.08380585,143.57,143.48,6.9684]
[1746409242193,6.9666,143.52,143.48,6.9684]
[1746409242593,43.08380585,143.57,143.47,6.9688]
[1746409242996,8.58380585,143.53,143.44,34.5]
[1746409243188,6.9689,143.48,143.44,34.5]
[1746409243796,6.969,143.47,143.44,34.5]
[1746409243995,36.6281,143.52,143.44,34.5]
[1746409244695,4.40052188,143.51,143.42,2.1305]
[1746409244889,12.98526823,143.5,143.42,2.1305]
[1746409245091,8.58380585,143.5,143.4,34.48]
[1746409245498,4.40182214,143.49,143.4,34.48]
[1746409245796,6.9709,143.44,143.4,34.48]
[1746409247496,6.9709,143.44,143.4,41.4524]
[1746409247687,6.9709,143.44,143.4,34.48]
[1746409248901,6.9701,143.45,143.4,34.48]
[1746409249295,34.48,143.48,143.4,34.48]
[1746409249495,6.9698,143.46,143.41,6.9716]
[1746409250802,6.9698,143.46,143.42,6.9714]
[1746409251104,6.9691,143.47,143.4,34.48]
[1746409251304,34.48,143.48,143.42,6.9711]
[1746409253106,6.9693,143.47,143.43,6.9709]
[1746409253907,6.9696,143.46,143.41,6.9714]
[1746409254100,6.9696,143.46,143.4,34.48]
[1746409254507,6.9692,143.47,143.43,6.9709]
[1746409256613,6.9695,143.46,143.43,6.9709]
[1746409257815,6.9695,143.46,143.42,6.9712]
[1746409258810,6.9692,143.47,143.43,6.9707]
[1746409260512,34.48,143.48,143.4,34.48]
[1746409260913,36.3081,143.52,143.4,34.48]
[1746409261116,6.9681,143.49,143.4,34.48]
[1746409261808,6.9681,143.49,143.45,6.9696]
[1746409263012,6.9677,143.5,143.46,6.9691]
[1746409263221,34.16,143.58,143.45,6.2505]
[1746409263420,4.38047981,143.57,143.46,34.16]
[1746409263613,12.96370336,143.56,143.46,34.16]
[1746409263814,6.55868434,143.55,143.46,34.16]
[1746409264017,6.9669,143.52,143.47,6.969]
[1746409264313,6.9669,143.52,143.46,34.16]
[1746409264519,6.9663,143.53,143.49,6.968]
[1746409264821,34.16,143.54,143.46,34.16]
[1746409265422,6.9671,143.51,143.47,6.9688]
[1746409267022,6.9668,143.52,143.47,6.9688]
[1746409267325,2.0711,143.53,143.46,34.16]
[1746409267514,9.0373,143.53,143.46,34.16]
[1746409267715,34.16,143.54,143.46,34.16]
[1746409268127,34.16,143.54,143.47,2.0193]
[1746409268320,6.9653,143.55,143.51,6.9667]
[1746409268922,6.9656,143.54,143.5,6.9674]
[1746409269118,6.9656,143.54,143.47,2.0193]
[1746409269317,36.2766,143.58,143.47,2.0193]
[1746409269929,6.9653,143.55,143.51,6.9667]
[1746409270728,6.9643,143.57,143.53,6.9659]
[1746409271332,43.2404,143.58,143.54,6.9656]
[1746409271830,36.2766,143.58,143.51,1.9897]
[1746409272933,36.2766,143.58,143.5,34.16]
[1746409274034,36.2766,143.58,143.49,6.9679]
[1746409274535,6.9661,143.54,143.49,6.9679]
[1746409274731,36.2766,143.58,143.49,6.9679]
[1746409274934,8.58380585,143.56,143.43,361.0]
[1746409275128,6.9686,143.48,143.43,361.0]
[1746409275334,6.9686,143.48,143.42,2.0808]
[1746409275829,6.9684,143.49,143.42,2.0808]
[1746409276029,38.423,143.52,143.42,2.0808]
[1746409276237,6.9698,143.46,143.42,2.0808]
[1746409276433,34.16,143.48,143.41,34.16]
[1746409276737,34.16,143.48,143.38,551.88]
[1746409276933,6.9701,143.45,143.4,6.9723]
[1746409277236,34.16,143.48,143.4,6.9723]
[1746409277437,4.38550344,143.47,143.4,6.9723]
[1746409277632,6.97,143.45,143.4,6.9723]
[1746409277833,2.0881,143.46,143.41,6.9719]
[1746409278037,9.0579,143.46,143.41,6.9719]
[1746409278336,2.0881,143.46,143.4,6.9723]
[1746409278533,6.97,143.45,143.4,6.9723]
[1746409278726,6.97,143.45,143.38,553.8948]
[1746409278932,2.0881,143.46,143.38,553.8948]
[1746409279533,2.0881,143.46,143.43,6.9707]
[1746409279839,34.16,143.48,143.41,34.16]
[1746409280233,6.9702,143.45,143.41,34.16]
[1746409280632,34.16,143.48,143.41,34.16]
[1746409281439,34.16,143.48,143.4,6.972]
[1746409281635,6.9708,143.44,143.4,6.972]
[1746409281833,34.16,143.48,143.38,2.0148]
[1746409282036,8.58380585,143.5,143.33,34.16]
[1746409282037,8.58380585,143.44,143.33,34.16]
[1746409282242,6.973,143.39,143.33,34.16]
[1746409282539,6.973,143.39,143.34,9.1186]
[1746409282834,6.9735,143.38,143.34,2.1437]
[1746409283035,6.9735,143.38,143.33,41.1357]
[1746409283236,39.779,143.43,143.33,34.16]
[1746409283438,6.9729,143.4,143.33,34.16]
[1746409283638,39.779,143.43,143.34,6.9749]
[1746409283935,39.779,143.43,143.33,34.16]
[1746409284137,8.58380585,143.41,143.33,34.16]
[1746409284640,6.974,143.37,143.33,34.16]
[1746409284840,6.974,143.37,143.32,6.9762]
[1746409285242,6.9744,143.36,143.32,6.9762]
[1746409285435,34.16,143.39,143.32,6.9762]
[1746409285631,34.16,143.39,143.31,4.153]
[1746409285836,34.16,143.39,143.33,6.9755]
[1746409286038,6.9737,143.38,143.31,4.153]
[1746409286742,6.9737,143.38,143.33,6.9758]
[1746409287046,6.9737,143.38,143.31,4.153]
[1746409287340,41.133,143.39,143.34,6.975]
[1746409287542,34.16,143.39,143.34,6.975]
[1746409287847,34.16,143.39,143.31,4.153]
[1746409288144,39.799,143.43,143.31,4.153]
[1746409289547,6.9732,143.39,143.35,6.9748]
[1746409290546,6.9732,143.39,143.34,6.9752]
[1746409290748,39.799,143.43,143.34,6.9752]
[1746409290952,8.58380585,143.41,143.31,4.153]
[1746409291146,8.58380585,143.41,143.32,6.9759]
[1746409291449,8.58380585,143.41,143.31,4.153]
[1746409291850,6.9731,143.39,143.31,4.153]
[1746409292048,39.799,143.43,143.31,4.153]
[1746409293051,6.9738,143.38,143.33,6.9754]
[1746409293348,6.9738,143.38,143.31,4.153]
[1746409293651,6.9721,143.41,143.37,6.9737]
[1746409293849,38.3948,143.43,143.34,33.86]
[1746409294048,6.9724,143.4,143.36,6.974]
[1746409294852,6.972,143.41,143.36,6.974]
[1746409296255,6.9724,143.4,143.36,6.974]
[1746409296551,38.3948,143.43,143.36,6.974]
[1746409296745,6.9721,143.41,143.37,6.9738]
[1746409297251,6.9721,143.41,143.36,6.974]
[1746409297552,6.9721,143.41,143.34,33.86]
[1746409297754,6.9721,143.41,143.36,6.9743]
[1746409297948,6.972,143.41,143.36,6.9743]
[1746409298149,4.2148,143.43,143.36,6.9743]
[1746409299052,6.972,143.41,143.36,6.9743]
[1746409299354,6.9727,143.4,143.36,6.9743]
[1746409299556,4.2148,143.43,143.34,33.86]
[1746409299754,1.4033,143.42,143.34,33.86]
[1746409300657,1.4033,143.42,143.34,40.8351]
[1746409301658,6.9737,143.38,143.34,40.8351]
[1746409301851,1.4033,143.42,143.34,33.86]
[1746409302057,8.58380585,143.41,143.33,6.9756]
[1746409302258,6.9742,143.37,143.33,6.9756]
[1746409302654,33.86,143.4,143.31,6.9763]
[1746409302958,33.86,143.4,143.29,394.86]
[1746409303158,33.86,143.4,143.29,33.86]
[1746409303357,6.9747,143.36,143.29,33.86]
[1746409304059,33.86,143.36,143.26,6.2258]
[1746409304455,6.9751,143.35,143.31,6.9768]
[1746409306161,6.9753,143.34,143.3,6.9771]
[1746409306462,6.9759,143.33,143.29,6.9776]
[1746409306657,6.9759,143.33,143.26,6.2258]
[1746409306859,35.9316,143.36,143.26,6.2258]
[1746409307053,6.9758,143.33,143.26,6.2258]
[1746409307258,35.9316,143.36,143.26,6.2258]
[1746409307666,6.9757,143.34,143.3,6.9771]
[1746409307961,6.9757,143.34,143.26,6.2258]
[1746409308765,6.9757,143.34,143.3,6.977]
[1746409309061,6.9758,143.33,143.26,6.2258]
[1746409309463,6.9758,143.33,143.29,6.9776]
[1746409310759,6.9766,143.32,143.28,6.9781]
[1746409311265,6.9767,143.32,143.28,6.9781]
[1746409311460,35.9316,143.36,143.26,6.2258]
[1746409311664,8.58380585,143.34,143.26,4.0709]
[1746409312165,8.58380585,143.34,143.26,2.0676]
[1746409312765,6.9781,143.29,143.25,6.9794]
[1746409313159,6.9781,143.29,143.23,552.32]
[1746409313358,33.88,143.32,143.23,552.32]
[1746409314165,6.9773,143.3,143.23,552.32]
[1746409314364,33.88,143.32,143.23,552.32]
[1746409314569,6.9771,143.31,143.27,6.9786]
[1746409316865,33.88,143.32,143.23,552.32]
[1746409317367,6.9782,143.29,143.25,6.9794]
[1746409317765,6.9782,143.29,143.23,552.32]
[1746409318468,33.88,143.32,143.23,552.32]
[1746409318667,33.88,143.32,143.25,6.9794]
[1746409318868,6.9773,143.3,143.25,6.9794]
[1746409319471,6.9778,143.29,143.25,6.9794]
[1746409320367,33.88,143.32,143.23,552.32]
[1746409320868,33.88,143.32,143.26,6.979]
[1746409321467,33.88,143.32,143.23,552.32]
[1746409321865,6.977,143.31,143.23,552.32]
[1746409322172,33.88,143.32,143.23,552.32]
[1746409322366,33.56,143.36,143.24,8.58380585]
[1746409322670,33.56,143.36,143.25,33.56]
[1746409323170,33.56,143.36,143.26,2.0036]
[1746409323372,6.9771,143.31,143.27,6.9784]
[1746409323574,33.56,143.36,143.26,2.0036]
[1746409323774,33.56,143.36,143.27,2.0896]
[1746409324074,6.9756,143.34,143.3,6.9769]
[1746409324377,33.56,143.36,143.28,2.0554]
[1746409324577,2.088,143.35,143.28,2.0554]
[1746409325274,33.56,143.36,143.28,2.0554]
[1746409325473,40.5345,143.36,143.32,6.9763]
[1746409325773,2.088,143.39,143.3,33.56]
[1746409326273,4.38771096,143.38,143.3,33.56]
[1746409326473,2.088,143.39,143.3,33.56]
[1746409326674,6.9756,143.34,143.3,40.5369]
[1746409326876,6.9756,143.34,143.3,33.56]
[1746409327174,33.56,143.36,143.3,33.56]
[1746409327371,33.56,143.36,143.28,2.0554]
[1746409327775,33.56,143.36,143.29,6.9774]
[1746409328378,6.9756,143.34,143.29,6.9774]
[1746409328577,6.9756,143.34,143.28,2.0554]
[1746409328875,33.56,143.36,143.28,2.0554]
[1746409329079,6.9755,143.34,143.29,6.9774]
[1746409329281,33.56,143.36,143.28,2.0554]
[1746409329577,6.9757,143.34,143.3,6.9772]
[1746409330074,33.56,143.36,143.3,6.9772]
[1746409330275,6.9758,143.33,143.29,6.9776]
[1746409330678,33.56,143.36,143.28,2.0554]
[1746409330877,6.9756,143.34,143.3,6.9772]
[1746409332078,6.9758,143.33,143.3,6.9772]
[1746409332477,6.9758,143.33,143.29,6.9776]
[1746409333081,6.9763,143.32,143.28,9.0335]
[1746409333380,6.9763,143.32,143.28,2.0554]
[1746409334281,6.9763,143.32,143.29,6.9777]
[1746409334585,8.58380585,143.34,143.23,552.32]
[1746409334782,40.09686342,143.33,143.23,9.0713]
[1746409334976,4.37236342,143.32,143.23,9.0713]
[1746409335178,6.9786,143.28,143.23,9.0713]
[1746409336085,8.58380585,143.31,143.23,2.0911]
[1746409336279,4.3820533,143.3,143.23,2.0911]
[1746409336476,8.58380585,143.31,143.23,2.0911]
[1746409336676,6.9784,143.28,143.24,6.9799]
[1746409336978,8.58380585,143.31,143.23,2.0911]
[1746409337883,6.9788,143.27,143.23,9.0715]
[1746409338981,8.58380585,143.31,143.23,2.0911]
[1746409338982,6.9792,143.26,143.23,2.0911]
[1746409339183,8.58380585,143.31,143.23,2.0911]
[1746409339375,4.38859894,143.3,143.23,2.0911]
[1746409339576,8.58380585,143.31,143.23,2.0911]
[1746409339774,4.38708991,143.3,143.23,2.0911]
[1746409340074,6.9792,143.27,143.23,2.0911]
[1746409340579,8.58380585,143.31,143.23,2.0911]
[1746409340787,4.38817522,143.3,143.23,2.0911]
[1746409341078,6.9795,143.26,143.23,2.0911]
[1746409341384,33.56,143.29,143.21,33.56]
[1746409342184,6.9798,143.25,143.21,40.5414]
[1746409342387,33.56,143.29,143.18,37.5877]
[1746409343184,33.56,143.29,143.19,6.9823]
[1746409343980,6.9805,143.24,143.19,6.9823]
[1746409344191,8.58380585,143.28,143.18,44.5706]
[1746409344390,6.981,143.23,143.18,37.5877]
[1746409344684,2.0038,143.27,143.18,37.5877]
[1746409344876,2.0038,143.27,143.2,6.9817]
[1746409345580,6.9807,143.24,143.2,6.9817]
[1746409345786,2.0038,143.27,143.18,37.5877]
[1746409346281,6.981,143.23,143.19,6.9826]
[1746409347884,6.9812,143.22,143.19,6.9826]
[1746409348886,6.9809,143.23,143.19,6.9826]
[1746409349079,33.58,143.25,143.18,37.5877]
[1746409349280,33.58,143.29,143.18,37.5877]
[1746409349482,6.9794,143.26,143.21,6.9813]
[1746409350181,6.9794,143.26,143.22,6.9812]
[1746409350381,6.9794,143.26,143.18,37.5877]
[1746409350587,6.9798,143.25,143.21,6.9815]
[1746409352187,6.9803,143.24,143.21,6.9815]
[1746409352387,6.9803,143.24,143.2,6.982]
[1746409353087,6.9808,143.23,143.2,6.982]
[1746409354794,6.9803,143.24,143.2,6.982]
[1746409355789,6.9798,143.25,143.18,37.5877]
[1746409356491,6.9798,143.25,143.21,6.9813]
[1746409356790,6.9798,143.25,143.18,37.5877]
[1746409356990,6.9794,143.26,143.18,37.5877]
[1746409357192,33.26,143.33,143.18,398.5877]